bitfinex/quotes_ETHUSD_20241217
["timestamp","ask_amount","ask_price","bid_price","bid_amount"]
[1734456164320,2.52296,3963.6,3961.3,0.12331798]
[1734456164321,2.52296,3963.6,3961.9,0.8041]
[1734456164460,0.252282,3963.9,3962.1,0.8041]
[1734456164663,2.52258,3964.2,3962.3,0.8041]
[1734456164863,0.7717,3964.8,3962.5,0.8041]
[1734456165070,3.29392,3964.8,3962.7,0.8041]
[1734456165367,0.7717,3964.8,3962.8,0.94925527]
[1734456165591,2.52233,3964.6,3962.9,0.94925527]
[1734456165792,2.52233,3964.6,3963.0,0.14515527]
[1734456166116,2.52241,3964.5,3963.1,0.94925527]
[1734456166268,2.52241,3964.5,3963.2,0.14515527]
[1734456166467,2.52241,3964.5,3963.3,0.14515527]
[1734456166822,2.52241,3964.5,3963.1,0.8041]
[1734456167112,2.52241,3964.5,3963.2,0.14541171]
[1734456167419,2.52264,3964.1,3963.3,0.14541171]
[1734456167715,0.57962281,3964.4,3963.1,0.8041]
[1734456167913,0.57962281,3964.4,3963.2,0.14542853]
[1734456167914,3.10207281,3964.4,3963.2,0.14542853]
[1734456168125,0.12481098,3964.6,3963.3,0.92752853]
[1734456168324,2.52211,3965.0,3963.5,0.7821]
[1734456168617,2.52211,3965.0,3963.6,0.14542853]
[1734456168818,5.46636509,3965.2,3963.7,0.92752853]
[1734456169115,2.94441509,3965.2,3963.8,0.14542853]
[1734456169324,2.94441509,3965.2,3963.7,0.7821]
[1734456169325,2.52219,3964.8,3963.7,0.7821]
[1734456169672,2.94441509,3964.8,3963.7,0.7821]
[1734456170226,5.46686509,3964.4,3963.7,0.7821]
[1734456170368,2.52253,3964.3,3963.7,0.7821]
[1734456170569,2.94441509,3964.9,3963.7,0.7821]
[1734456170810,2.94441509,3964.5,3963.7,0.7821]
[1734456171476,0.33648647,3964.8,3963.7,0.7821]
[1734456171678,2.52239,3964.5,3963.7,0.7821]
[1734456171876,0.33648647,3964.8,3963.7,0.7821]
[1734456172108,2.52253,3964.3,3963.7,0.7821]
[1734456172327,0.03004121,3964.2,3963.7,0.7821]
[1734456173432,2.52226,3964.7,3963.7,0.7821]
[1734456173657,0.02865484,3964.1,3963.7,0.7821]
[1734456173797,2.52225,3964.7,3963.7,0.7821]
[1734456174136,0.02865589,3964.6,3963.7,0.7821]
[1734456174346,3.21569664,3964.6,3963.7,0.7821]
[1734456174913,2.52242,3964.5,3963.7,0.7821]
[1734456175094,0.02865547,3964.4,3963.7,0.7821]
[1734456175298,0.33648647,3964.8,3963.7,0.7821]
[1734456175529,0.0287195,3964.7,3963.7,0.7821]
[1734456175849,2.52235,3964.6,3963.7,0.7821]
[1734456176052,0.3300539,3964.7,3963.7,0.7821]
[1734456176260,2.81645151,3965.1,3963.7,0.7821]
[1734456176261,2.55111908,3964.5,3963.7,0.7821]
[1734456176458,0.02871929,3964.6,3963.7,0.7821]
[1734456176611,0.02871887,3964.4,3963.7,0.7821]
[1734456176814,0.02871908,3964.5,3963.7,0.7821]
[1734456177154,0.02871887,3964.4,3963.7,0.7821]
[1734456177564,2.94441509,3964.9,3963.7,0.7821]
[1734456177565,2.5224,3964.5,3963.7,0.7821]
[1734456177768,0.02871866,3964.3,3963.7,0.7821]
[1734456177909,2.55118887,3964.4,3963.7,0.7821]
[1734456178310,2.52263,3964.2,3963.7,0.7821]
[1734456178539,0.02871824,3964.1,3963.7,0.7821]
[1734456178965,2.52271,3964.0,3963.7,0.7821]
[1734456179493,2.52271,3964.0,3962.1,0.7821]
[1734456179494,2.55151952,3963.9,3962.1,0.7821]
[1734456179786,2.55151952,3963.9,3961.9,3.0]
[1734456179787,2.55151952,3963.9,3962.3,0.7821]
[1734456180095,2.55151952,3963.9,3962.5,0.7821]
[1734456180236,2.55151952,3963.9,3962.6,0.14558479]
[1734456180442,0.02874952,3963.9,3962.7,0.92768479]
[1734456180671,0.02874952,3963.9,3962.8,0.14558479]
[1734456180886,0.02874952,3963.9,3962.9,0.02523202]
[1734456181085,0.02874952,3963.9,3963.0,0.92770071]
[1734456181301,2.52226,3964.7,3963.2,0.7692]
[1734456181805,0.02744585,3964.6,3963.4,0.7692]
[1734456181941,0.02744585,3964.6,3963.5,0.14560071]
[1734456182140,2.52222,3964.8,3963.6,0.14560071]
[1734456182344,0.02761519,3964.7,3963.4,0.7692]
[1734456182597,0.02761519,3964.7,3963.5,0.14556507]
[1734456182772,0.02761519,3964.7,3963.6,0.97539145]
[1734456183082,0.02761519,3964.7,3963.8,0.8046]
[1734456183288,3.0,3964.8,3963.8,0.8046]
[1734456183492,0.02761498,3964.6,3963.8,0.8046]
[1734456183789,0.02761477,3964.5,3963.8,0.8046]
[1734456184160,2.52228,3964.7,3963.8,0.8046]
[1734456184392,0.02761456,3964.4,3963.8,0.8046]
[1734456184723,0.12600806,3965.0,3963.8,0.8046]
[1734456184874,0.02761435,3964.3,3963.8,0.8046]
[1734456185079,3.28646005,3964.9,3963.8,0.8046]
[1734456185279,0.02774625,3964.2,3963.8,0.8046]
[1734456185592,0.02774604,3964.1,3963.8,0.8046]
[1734456185956,2.52226,3964.7,3963.8,0.8046]
[1734456186189,2.52232,3964.6,3963.8,0.8046]
[1734456186347,2.55002481,3964.6,3963.8,0.8046]
[1734456186743,0.02770481,3964.6,3963.8,0.8046]
[1734456188000,2.55002481,3964.6,3963.8,0.8046]
[1734456188594,0.02770481,3964.6,3963.8,0.8046]
[1734456190496,0.02770481,3964.6,3963.9,0.14626059]
[1734456190800,0.02770481,3964.6,3963.8,0.8046]
[1734456191096,0.02770481,3964.6,3962.9,3.0]
[1734456191097,0.02770481,3964.6,3964.0,0.8046]
[1734456191303,2.38042396,3965.2,3964.1,0.14625564]
[1734456191452,0.02770461,3964.5,3964.2,0.14625564]
[1734456191645,2.38042396,3965.2,3964.3,0.14625564]
[1734456191891,0.02819586,3964.4,3964.0,0.8046]
[1734456192110,2.38042396,3965.2,3964.1,0.14622521]
[1734456192247,2.52229,3964.7,3964.0,0.8046]
[1734456192446,4.90261396,3964.8,3964.0,0.8046]
[1734456192647,0.02819628,3964.6,3964.0,0.8046]
[1734456192858,5.39569509,3964.8,3964.0,0.8046]
[1734456192859,0.02819649,3964.7,3964.0,0.8046]
[1734456193058,0.02819607,3964.5,3964.0,0.8046]
[1734456193273,0.02819628,3964.6,3964.0,0.8046]
[1734456193490,0.02819586,3964.4,3964.0,0.8046]
[1734456193816,0.02819565,3964.3,3964.0,0.8046]
[1734456194095,0.52129961,3964.3,3962.5,0.8046]
[1734456194295,4.90318396,3964.0,3962.6,0.14633225]
[1734456194516,2.38042396,3964.4,3962.7,0.95093225]
[1734456194669,0.02819482,3963.9,3962.9,0.8046]
[1734456194895,2.52259,3964.2,3962.9,0.8046]
[1734456195088,0.4903014,3964.1,3963.0,0.14633602]
[1734456195291,0.4903014,3964.1,3963.1,0.14633602]
[1734456195594,0.02796783,3964.0,3963.3,0.8046]
[1734456195828,0.02796783,3964.0,3962.4,2.38042396]
[1734456195829,0.02796783,3964.0,3963.5,0.8046]
[1734456195971,2.38042396,3964.8,3963.6,0.14633602]
[1734456196172,2.38042396,3964.8,3963.5,0.8046]
[1734456196378,4.21475687,3965.3,3963.6,0.14628715]
[1734456196379,0.02796929,3964.7,3963.6,0.14628715]
[1734456196680,2.52206,3965.0,3963.7,0.95088715]
[1734456196873,2.52206,3965.0,3963.8,0.14628715]
[1734456197080,0.02711368,3964.9,3963.7,0.8046]
[1734456197277,2.38042396,3964.7,3963.7,0.8046]
[1734456197527,2.52233,3964.6,3963.7,0.8046]
[1734456197689,2.54944305,3964.6,3963.7,0.8046]
[1734456197890,0.02711305,3964.6,3963.7,0.8046]
[1734456198120,0.04253415,3964.6,3963.7,0.8046]
[1734456198500,0.04253415,3964.6,3963.8,0.14626781]
[1734456198717,0.04253415,3964.6,3963.7,0.8046]
[1734456199018,0.04253415,3964.6,3963.8,0.14625493]
[1734456199220,0.04253415,3964.6,3963.7,0.8046]
[1734456199421,0.04253415,3964.6,3963.8,0.14626343]
[1734456199605,0.04253415,3964.6,3963.7,0.8046]
[1734456199818,0.04253415,3964.6,3963.8,0.14625114]
[1734456199997,0.04253415,3964.6,3963.7,0.8046]
[1734456200174,0.04253415,3964.6,3963.8,0.14624226]
[1734456200381,0.04253415,3964.6,3963.0,0.025224]
[1734456200382,0.04253415,3964.6,3963.9,0.95080237]
[1734456200620,0.04253415,3964.6,3964.1,0.8046]
[1734456200828,0.04253415,3964.6,3964.0,0.479325]
[1734456200829,0.0154211,3964.6,3964.2,0.14620237]
[1734456201044,0.02735061,3964.5,3964.3,0.95080237]
[1734456201175,0.0154211,3964.6,3964.4,0.14620237]
[1734456201522,0.0154211,3964.6,3964.5,0.95067069]
[1734456201678,0.0154211,3964.6,3964.5,0.8046]
[1734456201880,0.0154211,3964.6,3964.5,0.95066717]
[1734456202375,0.0154211,3964.6,3964.5,0.8046]
[1734456203392,0.0154211,3964.6,3964.5,0.95053457]
[1734456203727,0.0154211,3964.6,3964.5,0.8046]
[1734456205591,0.04210075,3964.6,3964.5,0.8046]
[1734456205816,0.0154211,3964.6,3964.5,0.8046]
[1734456206020,0.04210075,3964.6,3964.5,0.8046]
[1734456206217,0.04210075,3964.6,3963.6,0.8046]
[1734456206218,2.39584506,3964.6,3963.6,0.8046]
[1734456206534,2.52244,3964.5,3963.6,0.98867118]
[1734456206737,2.52246,3964.4,3963.6,0.8046]
[1734456206885,0.04157746,3964.4,3963.6,0.8046]
[1734456207096,0.04157746,3964.4,3963.7,2.30865474]
[1734456207319,0.04157746,3964.4,3963.9,0.8046]
[1734456207514,0.0154211,3964.4,3964.0,0.14591574]
[1734456207747,0.0154211,3964.4,3963.9,0.8046]
[1734456207893,0.0154211,3964.4,3964.0,0.14584907]
[1734456208089,0.0154211,3964.4,3963.9,0.8046]
[1734456208336,2.52255,3964.3,3963.9,0.8046]
[1734456208692,0.0154211,3964.4,3963.9,0.8046]
[1734456209025,0.02600297,3964.3,3963.9,0.8046]
[1734456209984,0.04142407,3964.3,3963.9,0.8046]
[1734456210282,2.52258,3964.2,3963.9,0.8046]
[1734456210607,0.02600255,3964.1,3963.9,0.8046]
[1734456210882,0.02600255,3964.1,3962.7,2.07222359]
[1734456210883,2.52273,3964.0,3963.5,0.8046]
[1734456211186,0.02578553,3963.9,3963.5,0.8046]
[1734456211338,0.02578553,3963.9,3962.8,1.03611179]
[1734456211339,2.52284,3963.8,3963.1,0.7755]
[1734456211534,0.02578511,3963.7,3963.1,0.95666118]
[1734456211781,0.0154211,3964.1,3963.1,0.95666118]
[1734456212285,0.02578574,3964.0,3963.1,0.95666118]
[1734456212451,0.7839,3963.9,3963.1,0.7755]
[1734456212805,0.7839,3963.9,3962.6,1.55416769]
[1734456212806,0.80968553,3963.9,3962.6,0.7755]
[1734456213082,0.80968553,3963.9,3962.6,0.80073468]
[1734456213083,2.52304,3963.5,3962.6,0.80073468]
[1734456213248,2.52304,3963.5,3962.6,0.7755]
[1734456213436,0.02536712,3963.4,3962.6,0.7755]
[1734456213838,1.04450054,3963.5,3962.6,0.7755]
[1734456214078,0.02536691,3963.3,3962.6,0.7755]
[1734456214285,0.02536712,3963.4,3962.6,0.7755]
[1734456214483,0.02514474,3963.2,3962.6,0.7755]
[1734456214686,0.024923,3963.3,3962.6,0.7755]
[1734456214852,0.02485915,3963.1,3962.6,0.7755]
[1734456215185,0.02485895,3963.0,3962.6,0.7755]
[1734456215333,0.02485895,3963.0,3961.9,0.7755]
[1734456215535,2.54821895,3963.0,3961.9,0.95666118]
[1734456215733,0.02485895,3963.0,3961.9,0.95666118]
[1734456215937,0.02485895,3963.0,3962.0,0.80073546]
[1734456216138,0.0154211,3963.0,3962.0,0.7755]
[1734456216345,0.02465788,3962.9,3962.0,0.7755]
[1734456216739,0.02465788,3962.9,3962.1,0.02523546]
[1734456216979,0.02465788,3962.9,3962.0,0.7755]
[1734456217154,0.04007898,3962.9,3962.0,0.7755]
[1734456217489,0.04007898,3962.9,3962.1,0.02523546]
[1734456217644,0.04007898,3962.9,3962.0,0.7755]
[1734456218805,0.82397898,3962.9,3961.5,1.81161179]
[1734456218948,0.82397898,3962.9,3961.5,0.7755]
[1734456219293,2.52392,3962.1,3961.1,0.7755]
[1734456219445,2.52377,3962.4,3961.1,0.7755]
[1734456219642,0.02363747,3962.0,3961.1,0.7755]
[1734456220018,0.02323537,3961.9,3961.2,0.7755]
[1734456220586,0.02245,3961.8,3961.2,0.7755]
[1734456220944,2.52406,3961.9,3961.2,0.7755]
[1734456221311,0.02233892,3961.8,3961.2,0.7755]
[1734456221803,0.02233871,3961.7,3961.2,0.7755]
[1734456221941,2.52408,3961.9,3961.2,0.7755]
[1734456222142,0.7839,3961.8,3960.6,0.7755]
[1734456222790,2.52427,3961.6,3960.6,0.7755]
[1734456222944,3.30777,3962.2,3960.7,0.02524702]
[1734456223147,0.7839,3962.2,3960.6,0.7755]
[1734456223347,0.7839,3962.2,3960.7,0.7755]
[1734456224064,2.52352,3962.8,3960.7,0.7755]
[1734456224261,2.52354,3962.7,3960.9,0.7755]
[1734456224512,2.52354,3962.7,3961.0,0.55]
[1734456224712,2.52354,3962.7,3961.2,0.7755]
[1734456224861,5.45663522,3963.0,3961.2,0.7755]
[1734456225063,2.5388411,3962.9,3961.2,0.7755]
[1734456225661,0.0154211,3962.9,3961.2,0.7755]
[1734456226117,2.93323522,3962.5,3961.2,0.7755]
[1734456226470,0.7651,3962.4,3961.2,0.7755]
[1734456226700,3.28882,3962.4,3961.2,0.7755]
[1734456227564,0.7651,3962.4,3961.2,0.7755]
[1734456228315,2.52387,3962.2,3961.2,0.7755]
[1734456228814,2.52392,3962.1,3961.2,0.7755]
[1734456229403,2.52379,3962.3,3961.2,0.7755]
[1734456229616,2.52389,3962.2,3961.2,0.7755]
[1734456230203,1.39963383,3962.4,3961.2,0.7755]
[1734456230411,2.52385,3962.2,3961.2,0.7755]
[1734456230890,0.4332869,3962.3,3961.2,0.7755]
[1734456231093,3.92335383,3962.4,3961.2,0.7755]
[1734456231094,0.7651,3962.4,3961.2,0.7755]
[1734456231342,0.7651,3962.8,3961.2,0.7755]
[1734456231541,2.64697304,3962.7,3961.2,0.7755]
[1734456231892,0.12341304,3962.7,3961.2,0.7755]
[1734456233191,0.0154211,3962.9,3961.4,0.8302]
[1734456233536,2.93323522,3962.3,3961.6,0.8302]
[1734456234796,5.45703522,3962.3,3961.6,0.8302]
[1734456234997,2.93323522,3962.3,3961.6,0.8302]
[1734456236038,2.52397,3962.0,3960.2,0.8302]
[1734456236337,2.52397,3962.0,3960.4,0.8302]
[1734456236521,0.54572052,3962.0,3960.4,0.8302]
[1734456236707,3.28915,3961.9,3960.4,0.8302]
[1734456237129,2.52415,3961.8,3960.4,0.8302]
[1734456237502,0.7651,3961.9,3960.4,0.8302]
[1734456238541,2.93323522,3962.3,3960.4,0.8302]
[1734456238542,2.52385,3962.2,3960.4,0.8302]
[1734456238710,3.14618852,3962.1,3960.4,0.8302]
[1734456239038,2.524,3962.0,3960.4,0.8302]
[1734456239543,2.52418,3961.7,3960.4,0.8302]
[1734456239745,5.45735522,3961.8,3960.4,0.8302]
[1734456240050,4.90811626,3961.7,3960.4,0.8302]
[1734456240208,2.38391626,3961.7,3960.4,0.8302]
[1734456240654,2.38085298,3961.3,3960.4,0.8302]
[1734456240864,2.52455,3961.1,3960.4,0.8302]
[1734456241001,2.38391626,3960.9,3960.4,0.8302]
[1734456243046,2.38391626,3961.3,3960.4,0.8302]
[1734456243959,4.90834626,3961.3,3960.4,0.8302]
[1734456244609,2.38391626,3961.3,3960.4,0.8302]
[1734456244944,0.7552,3961.9,3960.5,0.02524715]
[1734456244945,2.38391626,3961.7,3960.5,0.02524715]
[1734456245169,2.38391626,3961.7,3960.4,0.8302]
[1734456245317,2.38391626,3961.7,3960.6,0.7889]
[1734456245967,2.38391626,3961.7,3960.8,0.7889]
[1734456246257,2.38391626,3961.3,3960.8,0.7889]
[1734456247449,5.39916789,3961.3,3959.2,0.7889]
[1734456247615,5.39916789,3961.3,3959.5,0.55]
[1734456247616,2.38391626,3961.3,3959.5,0.55]
[1734456247809,2.38391626,3961.3,3959.8,0.7889]
[1734456248009,2.38391626,3961.3,3960.0,0.7889]
[1734456248208,2.38391626,3961.3,3960.1,0.35960713]
[1734456248505,2.52416,3961.7,3960.3,0.7889]
[1734456248506,2.38391626,3961.7,3960.3,0.7889]
[1734456248702,2.38391626,3961.7,3960.5,0.7889]
[1734456248908,2.38391626,3961.7,3960.7,0.7889]
[1734456249346,2.38391626,3961.7,3960.8,0.14694229]
[1734456249559,2.38391626,3962.1,3961.0,0.7889]
[1734456249852,2.38391626,3962.1,3961.1,0.13641447]
[1734456250208,2.38391626,3962.1,3961.2,0.02524179]
[1734456250407,2.38391626,3962.1,3960.9,0.81414179]
[1734456250610,2.38391626,3962.1,3961.1,0.7889]
[1734456250843,2.38391626,3962.1,3961.2,0.1469141]
[1734456251044,2.38391626,3962.1,3961.1,0.7889]
[1734456251246,2.38391626,3962.1,3961.2,0.14688205]
[1734456251463,2.38391626,3962.1,3961.1,0.7889]
[1734456251655,2.38391626,3962.1,3961.2,0.14688018]
[1734456251951,2.38391626,3962.1,3961.1,0.7889]
[1734456252159,2.38391626,3962.1,3960.8,0.55]
[1734456252160,2.38391626,3962.5,3961.3,0.7889]
[1734456252445,2.38391626,3962.1,3961.5,0.7889]
[1734456255284,2.95021189,3962.1,3961.5,0.7889]
[1734456255944,3.07650163,3962.1,3961.5,0.7889]
[1734456257141,2.510206,3962.1,3961.5,0.7889]
[1734456260185,2.38391626,3961.7,3960.4,0.7889]
[1734456260397,2.52423,3961.6,3960.5,0.33439052]
[1734456260541,2.38391626,3961.7,3960.6,0.33439052]
[1734456260747,0.12628974,3962.1,3960.2,1.04369514]
[1734456260748,2.510206,3962.1,3960.8,0.7889]
[1734456260946,2.510206,3962.1,3961.0,0.7889]
[1734456261342,1.0515521,3962.6,3961.1,0.35951124]
[1734456261546,1.57732815,3962.7,3961.4,0.7889]
[1734456261547,0.12752528,3962.7,3961.4,0.7889]
[1734456261749,0.12752528,3962.7,3961.6,0.7889]
[1734456262060,0.12752528,3962.7,3961.8,0.7889]
[1734456262445,2.38391626,3962.2,3960.9,1.04369514]
[1734456262644,2.38391626,3962.2,3961.1,0.772]
[1734456262862,2.38391626,3962.2,3961.3,0.772]
[1734456263278,3.5752121,3962.5,3961.3,0.772]
[1734456263481,1.0515521,3962.5,3961.3,0.772]
[1734456263819,2.38391626,3962.6,3961.5,0.772]
[1734456264098,3.43546836,3962.6,3961.6,0.14689523]
[1734456264258,1.0515521,3962.5,3961.6,0.14689523]
[1734456264459,4.90776626,3962.2,3961.5,0.772]
[1734456264868,5.95931836,3962.2,3961.5,0.772]
[1734456265068,4.90776626,3962.2,3961.5,0.772]
[1734456265271,5.95931836,3962.2,3961.5,0.772]
[1734456265474,4.90776626,3962.2,3961.5,0.772]
[1734456265676,5.95931836,3962.2,3961.5,0.772]
[1734456266162,4.90776626,3962.2,3961.5,0.772]
[1734456266472,2.38391626,3962.2,3961.5,0.772]
[1734456270513,1.0515521,3962.5,3961.7,0.772]
[1734456270681,1.0669732,3962.9,3961.9,0.772]
[1734456271019,0.0154211,3962.9,3962.1,0.772]
[1734456271805,2.52366,3962.5,3962.1,0.772]
[1734456271959,2.52378,3962.4,3961.1,0.8059]
[1734456272165,2.38391626,3962.2,3961.2,0.33430829]
[1734456272404,2.38391626,3962.2,3961.3,0.33437902]
[1734456272590,2.38391626,3962.2,3961.1,0.8059]
[1734456273612,2.38391626,3962.2,3961.2,0.14701337]
[1734456273818,2.38391626,3962.2,3961.1,0.8059]
[1734456274022,2.38391626,3962.2,3961.2,0.14709228]
[1734456274171,2.38391626,3962.2,3961.1,0.8059]
[1734456274368,3.0,3962.0,3961.1,0.8059]
[1734456274911,3.0,3962.1,3961.1,0.8059]
[1734456275114,5.38391626,3962.2,3961.1,0.8059]
[1734456276318,4.0515521,3962.5,3961.2,1.14059088]
[1734456276536,3.0,3962.5,3961.4,0.8059]
[1734456276816,6.43546836,3962.6,3961.6,0.8059]
[1734456277571,3.0,3962.4,3961.6,0.8059]
[1734456278367,3.5752121,3962.5,3961.6,0.8059]
[1734456278727,3.0,3962.4,3961.6,0.8059]
[1734456278884,2.52373,3962.4,3961.6,0.8059]
[1734456280175,0.0154211,3962.9,3961.7,0.33476712]
[1734456280474,0.0154211,3962.9,3961.9,0.8059]
[1734456280675,0.0154211,3962.9,3962.1,0.8059]
[1734456280878,0.0154211,3962.9,3961.7,1.56554271]
[1734456280879,0.0154211,3962.9,3962.2,0.76989946]
[1734456281079,0.0154211,3962.9,3962.3,1.14052928]
[1734456281376,0.0154211,3962.9,3962.3,0.8059]
[1734456281790,0.0154211,3962.9,3962.5,0.8059]
[1734456282907,0.0154211,3962.9,3962.6,0.33418424]
[1734456283212,0.0154211,3962.9,3961.9,1.56554271]
[1734456283213,0.0154211,3962.9,3962.7,0.8332]
[1734456286726,0.12569877,3964.5,3963.1,0.8192]
[1734456287019,0.12569877,3964.5,3963.2,0.14649708]
[1734456287241,0.12569877,3964.5,3963.3,0.8192]
[1734456288104,2.50961503,3964.5,3963.3,0.8192]
[1734456288990,3.01280453,3964.5,3963.3,0.8192]
[1734456289207,2.50961503,3964.5,3963.3,0.8192]
[1734456290843,2.38391626,3964.1,3963.3,0.8192]
[1734456292164,0.02217962,3964.0,3962.0,0.8192]
[1734456292323,0.02217962,3964.0,3962.2,0.8192]
[1734456292324,2.38391626,3963.7,3962.2,0.8192]
[1734456292530,2.38391626,3963.3,3962.2,0.8192]
[1734456293073,0.02275372,3963.2,3962.2,0.8192]
[1734456293770,2.38391626,3962.9,3962.2,0.8192]
[1734456294140,0.02267358,3962.8,3962.2,0.8192]
[1734456296557,2.38391626,3962.9,3962.8,0.22772642]
[1734456296898,2.87462989,3962.9,3962.8,0.22772642]
[1734456298155,2.38391626,3962.9,3962.8,0.22772642]
[1734456300298,3.17901626,3963.3,3962.8,0.22772642]
[1734456300507,2.38391626,3963.3,3962.8,0.22772642]
[1734456301462,4.90707626,3963.3,3962.8,0.22772642]
[1734456301699,2.38391626,3963.3,3962.8,0.22772642]
[1734456301900,2.38391626,3962.9,3962.8,0.22772642]
[1734456302101,4.90731626,3962.9,3962.8,0.22772642]
[1734456304137,7.90731626,3962.9,3962.8,0.22772642]
[1734456304300,5.5234,3962.9,3962.8,0.22772642]
[1734456304862,6.57569767,3962.9,3962.8,0.22772642]
[1734456305062,8.02526357,3962.9,3962.8,0.22772642]
[1734456305721,8.84246357,3962.9,3962.8,0.22772642]
[1734456305890,7.7901659,3962.9,3962.8,0.22772642]
[1734456306641,2.52455,3961.1,3960.1,0.7502]
[1734456306806,0.8172,3962.0,3960.1,0.7502]
[1734456306807,2.38391626,3961.2,3960.1,0.7502]
[1734456307223,2.38391626,3961.6,3960.1,0.7502]
[1734456307520,2.52446,3961.3,3960.1,0.7502]
[1734456307678,4.90841626,3961.2,3960.1,0.7502]
[1734456307900,2.52487,3960.6,3960.1,0.7502]
[1734456308096,2.38391626,3960.4,3960.1,0.7502]
[1734456308306,2.38391626,3960.4,3958.7,0.7502]
[1734456308506,2.38391626,3960.8,3958.9,0.7502]
[1734456308828,2.38391626,3960.4,3958.9,0.7502]
[1734456309425,2.52513,3960.2,3958.9,0.7502]
[1734456309714,2.52518,3960.2,3958.9,0.7502]
[1734456310135,2.38391626,3960.4,3958.9,0.7502]
[1734456310285,2.52544,3959.7,3958.9,0.7502]
[1734456310473,2.52551,3959.6,3958.9,0.7502]
[1734456310677,4.90942626,3959.6,3958.9,0.7502]
[1734456310920,2.38391626,3959.6,3958.9,0.7502]
[1734456312238,4.90941626,3959.6,3957.8,3.7502]
[1734456312539,3.0,3959.5,3958.0,0.7502]
[1734456313249,5.38391626,3959.6,3958.1,0.02526085]
[1734456313544,5.38391626,3959.6,3958.2,0.7502]
[1734456313842,2.52557,3959.5,3958.2,0.7502]
[1734456314310,5.38391626,3959.6,3958.2,0.7502]
[1734456314511,6.25656889,3959.6,3958.2,0.7502]
[1734456315165,3.25656889,3959.6,3958.2,0.7502]
[1734456315950,2.38391626,3959.6,3958.2,0.7502]
[1734456316605,4.90942626,3959.6,3958.2,0.7502]
[1734456317320,2.5256,3959.5,3958.2,0.7502]
[1734456317519,0.12699589,3959.4,3958.2,0.7502]
[1734456317755,2.38391626,3959.2,3958.2,0.7502]
[1734456320171,0.12699589,3959.4,3958.2,0.7502]
[1734456321158,3.12699589,3959.4,3958.2,0.7502]
[1734456321382,5.38391626,3959.1,3958.2,0.7502]
[1734456322871,7.90977626,3959.1,3958.2,0.7502]
[1734456323118,3.12699589,3959.4,3958.2,0.7502]
[1734456323387,0.12699589,3959.4,3958.2,0.7502]
[1734456327573,3.32122,3960.6,3958.6,0.7817]
[1734456327759,3.39544363,3960.5,3958.8,0.7817]
[1734456328159,0.123256,3959.8,3958.8,0.7817]
[1734456328734,0.12019143,3959.8,3958.8,0.7817]
[1734456331379,2.52572,3959.3,3958.8,0.7817]
[1734456331729,2.38391626,3959.5,3958.8,0.7817]
[1734456331935,2.93432703,3959.5,3958.8,0.7817]
[1734456332765,0.12019143,3959.8,3958.8,0.7817]
[1734456333179,3.19091626,3960.8,3958.9,0.79095711]
[1734456333381,5.71569626,3960.8,3959.1,0.7657]
[1734456333591,2.52507,3960.3,3959.1,0.7657]
[1734456334356,0.12384139,3960.0,3959.1,0.7657]
[1734456334652,3.57965579,3960.0,3959.1,0.7657]
[1734456335071,2.52552,3959.6,3959.1,0.7657]
[1734456335255,2.52552,3959.6,3957.8,0.7657]
[1734456335468,2.52583,3959.1,3958.0,0.7657]
[1734456335694,2.52583,3959.1,3958.1,0.14711708]
[1734456335891,2.52583,3959.1,3958.2,0.14711708]
[1734456336115,2.52583,3959.1,3958.3,0.14711708]
[1734456336277,3.3327,3959.3,3958.4,0.14711708]
[1734456336483,3.3327,3959.3,3958.5,0.14711708]
[1734456336484,0.807,3959.3,3958.5,0.14711708]
[1734456336700,1.12609163,3959.3,3958.0,0.7657]
[1734456337022,1.12609163,3959.3,3958.1,0.14716979]
[1734456337228,1.12609163,3959.3,3958.2,0.14716979]
[1734456337426,1.12609163,3959.3,3958.0,0.7657]
[1734456337427,0.31909163,3959.3,3958.3,0.91286979]
[1734456337583,0.31909163,3959.3,3958.4,0.14716979]
[1734456337774,0.31909163,3959.3,3958.3,0.7657]
[1734456338114,0.58447816,3959.2,3958.4,0.14715916]
[1734456338281,0.58447816,3959.2,3958.3,0.7657]
[1734456338487,2.52589,3959.0,3958.4,0.14725318]
[1734456338715,0.58447816,3959.2,3958.3,0.7657]
[1734456338898,3.0,3959.1,3958.4,0.14726909]
[1734456339097,2.91618698,3959.1,3958.3,0.7657]
[1734456339303,2.91618698,3959.1,3958.4,0.14726336]
[1734456339500,2.91618698,3959.1,3958.3,0.7657]
[1734456339501,0.39035698,3959.1,3958.3,0.7657]
[1734456339702,0.39035698,3959.1,3958.4,0.14726811]
[1734456339892,3.0,3959.1,3958.3,0.7657]
[1734456340095,3.0,3959.1,3958.4,0.1473066]
[1734456340272,3.0,3959.1,3958.3,0.7657]
[1734456340476,2.52576,3959.2,3958.4,0.14730764]
[1734456340714,3.0,3959.1,3958.3,0.7657]
[1734456340923,3.0,3959.1,3958.4,0.14731372]
[1734456341088,3.0,3959.1,3958.3,0.7657]
[1734456341298,3.0,3959.1,3958.4,0.14730081]
[1734456341602,0.12603471,3959.4,3958.5,0.14729874]
[1734456341808,0.12603471,3959.4,3958.3,0.7657]
[1734456341977,0.12603471,3959.4,3958.4,0.14729611]
[1734456342181,0.12603471,3959.4,3958.3,0.7657]
[1734456342397,0.12603471,3959.4,3958.4,0.14730581]
[1734456342688,0.12603471,3959.4,3958.3,0.7657]
[1734456342689,0.12603471,3959.4,3958.5,0.14730581]
[1734456343017,0.12603471,3959.4,3957.7,3.0]
[1734456343018,0.12603471,3959.4,3958.7,0.7657]
[1734456343421,0.12603471,3959.4,3958.8,0.14727292]
[1734456343722,2.50775765,3960.0,3959.0,0.7657]
[1734456343723,0.12384139,3960.0,3959.0,0.7657]
[1734456344022,2.85335379,3960.0,3959.1,0.14723256]
[1734456344226,2.52552,3959.6,3959.0,0.7657]
[1734456344438,3.33252,3959.6,3957.9,0.7657]
[1734456344586,3.19091626,3959.6,3958.1,0.7657]
[1734456344926,3.19091626,3959.6,3958.2,0.33500096]
[1734456344927,2.52578,3959.2,3958.2,0.33500096]
[1734456345223,2.52578,3959.2,3958.3,0.33500096]
[1734456345435,2.52578,3959.2,3958.1,0.7657]
[1734456345575,2.52584,3959.1,3958.2,0.33505588]
[1734456345785,2.52584,3959.1,3958.3,0.14723864]